[Event "*** Titled Tuesday Blitz"]
[Site "Chess.com"]
[Date "2020.11.10"]
[Round "3"]
[White "karwowskikacper"]
[Black "esapunov"]
[Result "0-1"]
[WhiteElo "2436"]
[BlackElo "2701"]
[TimeControl "180+1"]
[EndTime "10:31:30 PST"]
[Termination "esapunov won on time"]

1. Nf3 {[%clk 0:03:00.9]} 1... Nf6 {[%clk 0:02:59.6]} 2. g3 {[%clk 0:02:59.7]}
2... g6 {[%clk 0:02:59.7]} 3. Bg2 {[%clk 0:03:00.6]} 3... Bg7 {[%clk 0:02:59.8]}
4. O-O {[%clk 0:03:01.5]} 4... O-O {[%clk 0:03:00.4]} 5. d4 {[%clk 0:03:01.4]}
5... d6 {[%clk 0:03:01]} 6. c4 {[%clk 0:03:01.3]} 6... Nc6 {[%clk 0:03:00.6]} 7.
Nc3 {[%clk 0:03:00.7]} 7... Bf5 {[%clk 0:03:00.8]} 8. b3 {[%clk 0:02:56.1]} 8...
Ne4 {[%clk 0:03:00.1]} 9. Bb2 {[%clk 0:02:54.4]} 9... Nxc3 {[%clk 0:02:58.5]}
10. Bxc3 {[%clk 0:02:55.3]} 10... Be4 {[%clk 0:02:59.1]} 11. Ne1 {[%clk
0:02:48.9]} 11... Bxg2 {[%clk 0:02:57.4]} 12. Nxg2 {[%clk 0:02:49.8]} 12... e6
{[%clk 0:02:57.4]} 13. Qd2 {[%clk 0:02:44.5]} 13... d5 {[%clk 0:02:57.3]} 14.
Rad1 {[%clk 0:02:26.1]} 14... Re8 {[%clk 0:02:56.3]} 15. Rfe1 {[%clk 0:02:25]}
15... Ne7 {[%clk 0:02:49.6]} 16. e4 {[%clk 0:02:19.3]} 16... dxe4 {[%clk
0:02:48.6]} 17. Rxe4 {[%clk 0:02:20.2]} 17... c6 {[%clk 0:02:48.8]} 18. Nf4
{[%clk 0:02:09]} 18... Qd7 {[%clk 0:02:29]} 19. h4 {[%clk 0:01:46.2]} 19... Rad8
{[%clk 0:02:28]} 20. h5 {[%clk 0:01:32.1]} 20... Nf5 {[%clk 0:02:18.7]} 21. hxg6
{[%clk 0:01:28.7]} 21... hxg6 {[%clk 0:02:18.3]} 22. d5 {[%clk 0:01:22.4]} 22...
cxd5 {[%clk 0:02:15.3]} 23. cxd5 {[%clk 0:01:17.4]} 23... e5 {[%clk 0:02:14.8]}
24. Ng2 {[%clk 0:01:11]} 24... Qb5 {[%clk 0:01:58.5]} 25. Rb4 {[%clk 0:00:41]}
25... Qa6 {[%clk 0:01:54.1]} 26. Ra4 {[%clk 0:00:40.8]} 26... Qb6 {[%clk
0:01:53.3]} 27. Rb4 {[%clk 0:00:40.2]} 27... Qc7 {[%clk 0:01:52.1]} 28. Rc4
{[%clk 0:00:40.1]} 28... Qd7 {[%clk 0:01:52.4]} 29. Ne3 {[%clk 0:00:29.7]} 29...
Nd4 {[%clk 0:01:52]} 30. Bxd4 {[%clk 0:00:24.3]} 30... exd4 {[%clk 0:01:50.5]}
31. Rxd4 {[%clk 0:00:25.2]} 31... Bxd4 {[%clk 0:01:49.2]} 32. Qxd4 {[%clk
0:00:26.1]} 32... f5 {[%clk 0:01:40]} 33. Kg2 {[%clk 0:00:20.4]} 33... b6 {[%clk
0:01:37.8]} 34. Rh1 {[%clk 0:00:19.3]} 34... Qg7 {[%clk 0:01:37.9]} 35. Qxg7+
{[%clk 0:00:19.2]} 35... Kxg7 {[%clk 0:01:37.9]} 36. Rd1 {[%clk 0:00:19.8]}
36... Rd7 {[%clk 0:01:37.9]} 37. Kf3 {[%clk 0:00:18.7]} 37... Kf6 {[%clk
0:01:35.9]} 38. Rc1 {[%clk 0:00:16.1]} 38... Red8 {[%clk 0:01:33.4]} 39. Rc6+
{[%clk 0:00:16.2]} 39... Rd6 {[%clk 0:01:31.4]} 40. Rc7 {[%clk 0:00:15.7]} 40...
R8d7 {[%clk 0:01:31.7]} 41. Rc8 {[%clk 0:00:15.7]} 41... Re7 {[%clk 0:01:30.8]}
42. Ra8 {[%clk 0:00:14]} 42... b5 {[%clk 0:01:28.3]} 43. b4 {[%clk 0:00:10.4]}
43... Ke5 {[%clk 0:01:25.6]} 44. Rc8 {[%clk 0:00:07]} 44... Kd4 {[%clk
0:01:23.1]} 45. Rc1 {[%clk 0:00:07.4]} 45... Red7 {[%clk 0:01:18.5]} 46. a3
{[%clk 0:00:07.4]} 46... Ra6 {[%clk 0:01:16.8]} 47. Ra1 {[%clk 0:00:05.9]} 47...
Kc3 {[%clk 0:01:16.3]} 48. Ke2 {[%clk 0:00:06.2]} 48... Kb2 {[%clk 0:01:16.3]}
49. Rd1 {[%clk 0:00:06.2]} 49... Rxa3 {[%clk 0:01:16.2]} 50. d6 {[%clk
0:00:06.5]} 50... Ra6 {[%clk 0:01:15.1]} 51. Rd5 {[%clk 0:00:03.3]} 51... Rb6
{[%clk 0:01:11.4]} 52. f4 {[%clk 0:00:01.6]} 52... Rdxd6 {[%clk 0:01:11.5]} 0-1

[Event "*** Titled Tuesday Blitz"]
[Site "Chess.com"]
[Date "2020.11.10"]
[Round "3"]
[White "Gabrielian_Artur"]
[Black "Makswolf200817"]
[Result "1-0"]
[WhiteElo "2789"]
[BlackElo "2450"]
[TimeControl "180+1"]
[EndTime "10:31:31 PST"]
[Termination "Gabrielian_Artur won by checkmate"]

1. e4 {[%clk 0:03:00.9]} 1... e6 {[%clk 0:03:00.1]} 2. d3 {[%clk 0:02:55.4]}
2... d5 {[%clk 0:03:00.1]} 3. Qe2 {[%clk 0:02:55.7]} 3... dxe4 {[%clk 0:02:56]}
4. dxe4 {[%clk 0:02:55.5]} 4... c5 {[%clk 0:02:53.3]} 5. Nf3 {[%clk 0:02:52.2]}
5... Nc6 {[%clk 0:02:52.9]} 6. c3 {[%clk 0:02:51.1]} 6... Nf6 {[%clk 0:02:50.2]}
7. e5 {[%clk 0:02:48.7]} 7... Nd5 {[%clk 0:02:49.5]} 8. g3 {[%clk 0:02:46.6]}
8... Be7 {[%clk 0:02:48.4]} 9. Bg2 {[%clk 0:02:46.6]} 9... O-O {[%clk
0:02:48.2]} 10. O-O {[%clk 0:02:47]} 10... Qc7 {[%clk 0:02:45.1]} 11. Re1 {[%clk
0:02:46.3]} 11... Rd8 {[%clk 0:02:44.6]} 12. Nbd2 {[%clk 0:02:43.8]} 12... b6
{[%clk 0:02:42]} 13. h4 {[%clk 0:02:41.5]} 13... a5 {[%clk 0:02:40.5]} 14. a3
{[%clk 0:02:34.5]} 14... Ba6 {[%clk 0:02:37.9]} 15. c4 {[%clk 0:02:32.1]} 15...
Qd7 {[%clk 0:02:34.7]} 16. Qe4 {[%clk 0:02:01]} 16... Nc7 {[%clk 0:02:30.3]} 17.
Qg4 {[%clk 0:02:00.8]} 17... Rac8 {[%clk 0:02:14.9]} 18. Ne4 {[%clk 0:01:59.7]}
18... Ne8 {[%clk 0:02:14.8]} 19. Bg5 {[%clk 0:01:50.2]} 19... Bxg5 {[%clk
0:02:03.6]} 20. Nexg5 {[%clk 0:01:43.8]} 20... Ne7 {[%clk 0:01:51.4]} 21. Qh5
{[%clk 0:01:30]} 21... Nf5 {[%clk 0:01:28.4]} 22. Rad1 {[%clk 0:01:13.9]} 22...
Qc7 {[%clk 0:01:25.8]} 23. Qxh7+ {[%clk 0:01:08.6]} 23... Kf8 {[%clk 0:01:25.3]}
24. Bh3 {[%clk 0:00:52.6]} 24... Bxc4 {[%clk 0:00:44.3]} 25. Qh8+ {[%clk
0:00:46.6]} 25... Ke7 {[%clk 0:00:43.5]} 26. Bxf5 {[%clk 0:00:38.2]} 26... exf5
{[%clk 0:00:43.3]} 27. Nh7 {[%clk 0:00:37.9]} 27... Rd3 {[%clk 0:00:26.5]} 28.
Qf8+ {[%clk 0:00:19.7]} 28... Kd8 {[%clk 0:00:21.4]} 29. e6 {[%clk 0:00:18.6]}
29... fxe6 {[%clk 0:00:17.5]} 30. Ne5 {[%clk 0:00:18.6]} 30... Rxd1 {[%clk
0:00:16.2]} 31. Rxd1+ {[%clk 0:00:18.2]} 31... Bd5 {[%clk 0:00:16.7]} 32. Ng5
{[%clk 0:00:15.5]} 32... Qb7 {[%clk 0:00:09.2]} 33. Nxe6# {[%clk 0:00:14.4]} 1-0

[Event "*** Titled Tuesday Blitz"]
[Site "Chess.com"]
[Date "2020.11.10"]
[Round "3"]
[White "VMikhalevski"]
[Black "jefferyx"]
[Result "1/2-1/2"]
[WhiteElo "2708"]
[BlackElo "2962"]
[TimeControl "180+1"]
[EndTime "10:31:36 PST"]
[Termination "Game drawn by repetition"]

1. d4 {[%clk 0:03:00.9]} 1... g6 {[%clk 0:03:00.9]} 2. Nf3 {[%clk 0:03:00.1]}
2... Bg7 {[%clk 0:03:01.8]} 3. g3 {[%clk 0:02:59.9]} 3... c5 {[%clk 0:03:01.4]}
4. Bg2 {[%clk 0:02:57.3]} 4... cxd4 {[%clk 0:03:01.5]} 5. Nxd4 {[%clk
0:02:57.2]} 5... Nc6 {[%clk 0:03:02.2]} 6. Nxc6 {[%clk 0:02:54.5]} 6... dxc6
{[%clk 0:03:03.1]} 7. O-O {[%clk 0:02:54.3]} 7... Bg4 {[%clk 0:02:47.5]} 8. Nc3
{[%clk 0:02:48.6]} 8... Qxd1 {[%clk 0:02:40.9]} 9. Rxd1 {[%clk 0:02:47.8]} 9...
Bxc3 {[%clk 0:02:41.2]} 10. bxc3 {[%clk 0:02:47.9]} 10... Bxe2 {[%clk
0:02:41.5]} 11. Re1 {[%clk 0:02:48.2]} 11... Bc4 {[%clk 0:02:41.4]} 12. Rb1
{[%clk 0:02:42.8]} 12... O-O-O {[%clk 0:02:22.2]} 13. Bf4 {[%clk 0:02:36]} 13...
Bd5 {[%clk 0:01:13.6]} 14. Bh3+ {[%clk 0:02:33.5]} 14... e6 {[%clk 0:01:07.7]}
15. Be5 {[%clk 0:02:30.2]} 15... f6 {[%clk 0:01:07.1]} 16. Bd4 {[%clk
0:02:30.3]} 16... b6 {[%clk 0:00:56.6]} 17. Bxe6+ {[%clk 0:02:18.2]} 17... Bxe6
{[%clk 0:00:55]} 18. Rxe6 {[%clk 0:02:18]} 18... c5 {[%clk 0:00:40.9]} 19. Bxf6
{[%clk 0:02:13.4]} 19... Nxf6 {[%clk 0:00:41.8]} 20. Rxf6 {[%clk 0:02:13.6]}
20... Rd7 {[%clk 0:00:31]} 21. Re1 {[%clk 0:02:12.4]} 21... Rhd8 {[%clk
0:00:29.7]} 22. Kf1 {[%clk 0:02:11]} 22... Kb7 {[%clk 0:00:30.1]} 23. h4 {[%clk
0:02:09.9]} 23... Ka6 {[%clk 0:00:30.5]} 24. h5 {[%clk 0:02:08.3]} 24... gxh5
{[%clk 0:00:29.1]} 25. Rh6 {[%clk 0:02:08.3]} 25... Ka5 {[%clk 0:00:29.7]} 26.
Rxh5 {[%clk 0:02:05.5]} 26... Ka4 {[%clk 0:00:29.8]} 27. Kg2 {[%clk 0:01:47.7]}
27... Ka3 {[%clk 0:00:30.2]} 28. Reh1 {[%clk 0:01:47]} 28... Kxa2 {[%clk
0:00:28.2]} 29. Rxh7 {[%clk 0:01:46.7]} 29... Kb2 {[%clk 0:00:28.6]} 30. g4
{[%clk 0:01:45.1]} 30... a5 {[%clk 0:00:28.5]} 31. R1h6 {[%clk 0:01:25]} 31...
Rxh7 {[%clk 0:00:27.8]} 32. Rxh7 {[%clk 0:01:24.9]} 32... a4 {[%clk 0:00:28.3]}
33. Rb7 {[%clk 0:01:22]} 33... Rd6 {[%clk 0:00:21.3]} 34. g5 {[%clk 0:01:17.4]}
34... a3 {[%clk 0:00:12.3]} 35. f4 {[%clk 0:01:14.8]} 35... Kxc3 {[%clk
0:00:07]} 36. Ra7 {[%clk 0:01:13.6]} 36... Kb2 {[%clk 0:00:06.5]} 37. Kf3 {[%clk
0:01:12.9]} 37... a2 {[%clk 0:00:03.2]} 38. f5 {[%clk 0:01:12.6]} 38... b5
{[%clk 0:00:03.6]} 39. f6 {[%clk 0:01:11.5]} 39... Rd5 {[%clk 0:00:04.2]} 40.
Kg4 {[%clk 0:01:09.1]} 40... Rd4+ {[%clk 0:00:04.5]} 41. Kh5 {[%clk 0:01:07.4]}
41... Ra4 {[%clk 0:00:05.4]} 42. Rxa4 {[%clk 0:01:06.6]} 42... bxa4 {[%clk
0:00:06.3]} 43. f7 {[%clk 0:01:06.8]} 43... a1=Q {[%clk 0:00:07.2]} 44. f8=Q
{[%clk 0:01:06.6]} 44... Qh1+ {[%clk 0:00:08.1]} 45. Kg6 {[%clk 0:01:06.3]}
45... a3 {[%clk 0:00:07.9]} 46. Qxc5 {[%clk 0:01:03.4]} 46... Qe4+ {[%clk
0:00:08.5]} 47. Kf6 {[%clk 0:01:01.1]} 47... a2 {[%clk 0:00:07.9]} 48. Qb5+
{[%clk 0:01:00.2]} 48... Kc1 {[%clk 0:00:07.4]} 49. Qf1+ {[%clk 0:00:58.4]}
49... Kb2 {[%clk 0:00:07.7]} 50. Qb5+ {[%clk 0:00:58.1]} 50... Ka3 {[%clk
0:00:08]} 51. Qa5+ {[%clk 0:00:51.6]} 51... Kb2 {[%clk 0:00:05.6]} 52. Qb5+
{[%clk 0:00:51.6]} 1/2-1/2

[Event "*** Titled Tuesday Blitz"]
[Site "Chess.com"]
[Date "2020.11.10"]
[Round "3"]
[White "zivicd"]
[Black "GMKrikor"]
[Result "0-1"]
[WhiteElo "2248"]
[BlackElo "2796"]
[TimeControl "180+1"]
[EndTime "10:31:37 PST"]
[Termination "GMKrikor won by resignation"]

1. e4 {[%clk 0:02:37.5]} 1... c5 {[%clk 0:02:58.2]} 2. Nc3 {[%clk 0:02:36.7]}
2... e6 {[%clk 0:02:56.9]} 3. g3 {[%clk 0:02:36]} 3... d5 {[%clk 0:02:56.4]} 4.
d3 {[%clk 0:02:35.5]} 4... dxe4 {[%clk 0:02:45]} 5. Nxe4 {[%clk 0:02:34.3]} 5...
Nc6 {[%clk 0:02:45.7]} 6. Bg2 {[%clk 0:02:33.4]} 6... Be7 {[%clk 0:02:45.3]} 7.
f4 {[%clk 0:02:24.9]} 7... Nf6 {[%clk 0:02:45.3]} 8. Be3 {[%clk 0:02:22.5]} 8...
Nd5 {[%clk 0:02:42.8]} 9. Bf2 {[%clk 0:02:18.2]} 9... O-O {[%clk 0:02:38.1]} 10.
Nf3 {[%clk 0:02:16]} 10... b6 {[%clk 0:02:36.2]} 11. O-O {[%clk 0:02:15.5]}
11... Bb7 {[%clk 0:02:35.6]} 12. Re1 {[%clk 0:02:09.2]} 12... Qd7 {[%clk
0:02:31.3]} 13. h3 {[%clk 0:02:09]} 13... Rad8 {[%clk 0:02:30.3]} 14. Qe2 {[%clk
0:02:09.1]} 14... Rfe8 {[%clk 0:02:29.9]} 15. a3 {[%clk 0:02:03.8]} 15... h6
{[%clk 0:02:28.9]} 16. Rad1 {[%clk 0:02:03.5]} 16... Nf6 {[%clk 0:02:09.1]} 17.
g4 {[%clk 0:01:53.7]} 17... Nd5 {[%clk 0:02:05.7]} 18. Bg3 {[%clk 0:01:52.1]}
18... f5 {[%clk 0:02:00.1]} 19. Ned2 {[%clk 0:01:22.9]} 19... Bd6 {[%clk
0:01:48.6]} 20. Ne5 {[%clk 0:01:09.2]} 20... Bxe5 {[%clk 0:01:41.9]} 21. fxe5
{[%clk 0:01:08.8]} 21... Nd4 {[%clk 0:01:42.6]} 22. Qf2 {[%clk 0:01:08.8]} 22...
fxg4 {[%clk 0:01:10.5]} 23. Ne4 {[%clk 0:00:46.6]} 23... Rf8 {[%clk 0:01:10.1]}
24. Qd2 {[%clk 0:00:35]} 24... gxh3 {[%clk 0:01:10.2]} 25. Bh1 {[%clk
0:00:29.3]} 25... Nf3+ {[%clk 0:01:05.8]} 26. Bxf3 {[%clk 0:00:28.7]} 26... Rxf3
{[%clk 0:01:06.7]} 27. Rf1 {[%clk 0:00:20.1]} 27... Rdf8 {[%clk 0:01:02.2]} 28.
Qe2 {[%clk 0:00:19.9]} 28... Qf7 {[%clk 0:00:29.5]} 29. Nd6 {[%clk 0:00:19.1]}
29... Rxf1+ {[%clk 0:00:28.9]} 30. Rxf1 {[%clk 0:00:19.5]} 30... Qxf1+ {[%clk
0:00:29.5]} 31. Qxf1 {[%clk 0:00:19.8]} 31... Rxf1+ {[%clk 0:00:30.3]} 32. Kxf1
{[%clk 0:00:20.3]} 32... Bc6 {[%clk 0:00:29.7]} 33. Ke2 {[%clk 0:00:18.3]} 33...
Ne7 {[%clk 0:00:24.4]} 34. c4 {[%clk 0:00:18.1]} 34... g5 {[%clk 0:00:23.4]} 35.
Kf2 {[%clk 0:00:14.9]} 35... h5 {[%clk 0:00:21.3]} 36. Bh2 {[%clk 0:00:13.5]}
36... g4 {[%clk 0:00:19.9]} 37. Bg3 {[%clk 0:00:13.2]} 37... Ng6 {[%clk
0:00:19]} 38. Kg1 {[%clk 0:00:12.7]} 38... h4 {[%clk 0:00:18.8]} 0-1

[Event "*** Titled Tuesday Blitz"]
[Site "Chess.com"]
[Date "2020.11.10"]
[Round "3"]
[White "Mikasinski"]
[Black "HanSchut"]
[Result "1/2-1/2"]
[WhiteElo "2492"]
[BlackElo "2218"]
[TimeControl "180+1"]
[EndTime "10:31:38 PST"]
[Termination "Game drawn by repetition"]

1. e4 {[%clk 0:03:00.9]} 1... c5 {[%clk 0:02:59]} 2. Nf3 {[%clk 0:03:00.9]} 2...
d6 {[%clk 0:02:59.1]} 3. d4 {[%clk 0:02:59.6]} 3... cxd4 {[%clk 0:02:59.5]} 4.
Nxd4 {[%clk 0:03:00.5]} 4... Nf6 {[%clk 0:02:59.9]} 5. Nc3 {[%clk 0:02:58.6]}
5... a6 {[%clk 0:03:00.2]} 6. Be2 {[%clk 0:02:57.9]} 6... e5 {[%clk 0:03:00.4]}
7. Nf3 {[%clk 0:02:57.3]} 7... Be7 {[%clk 0:02:56.2]} 8. Bg5 {[%clk 0:02:57.7]}
8... Be6 {[%clk 0:02:49.5]} 9. Bxf6 {[%clk 0:02:57.7]} 9... Bxf6 {[%clk
0:02:50.4]} 10. Nd5 {[%clk 0:02:58.1]} 10... Nd7 {[%clk 0:02:47]} 11. Bc4 {[%clk
0:02:57.6]} 11... b5 {[%clk 0:02:43.3]} 12. Bb3 {[%clk 0:02:55.2]} 12... Nc5
{[%clk 0:02:32.4]} 13. Nxf6+ {[%clk 0:02:51.2]} 13... gxf6 {[%clk 0:02:23.3]}
14. Bd5 {[%clk 0:02:44.9]} 14... Rc8 {[%clk 0:02:17.2]} 15. Nh4 {[%clk
0:02:23.4]} 15... Qa5+ {[%clk 0:01:35.3]} 16. c3 {[%clk 0:02:19]} 16... b4
{[%clk 0:01:35.4]} 17. O-O {[%clk 0:01:42.3]} 17... bxc3 {[%clk 0:01:28]} 18.
Bxe6 {[%clk 0:01:39.1]} 18... fxe6 {[%clk 0:01:18.9]} 19. Qxd6 {[%clk
0:01:05.4]} 19... cxb2 {[%clk 0:01:12]} 20. Rab1 {[%clk 0:01:00.2]} 20... Qc7
{[%clk 0:01:11]} 21. Qd1 {[%clk 0:00:45.8]} 21... Ke7 {[%clk 0:00:36.6]} 22.
Rxb2 {[%clk 0:00:41.3]} 22... Nxe4 {[%clk 0:00:35.5]} 23. Qf3 {[%clk 0:00:30.6]}
23... Ng5 {[%clk 0:00:28.5]} 24. Qa3+ {[%clk 0:00:27.8]} 24... Kf7 {[%clk
0:00:21.5]} 25. Qxa6 {[%clk 0:00:24.2]} 25... Ra8 {[%clk 0:00:16.7]} 26. Qe2
{[%clk 0:00:24.2]} 26... h5 {[%clk 0:00:15.4]} 27. Rc2 {[%clk 0:00:19.9]} 27...
Qe7 {[%clk 0:00:15.6]} 28. Qd3 {[%clk 0:00:19.8]} 28... Rad8 {[%clk 0:00:13.9]}
29. Qg6+ {[%clk 0:00:19.1]} 29... Kf8 {[%clk 0:00:14.5]} 30. f4 {[%clk
0:00:17.6]} 30... exf4 {[%clk 0:00:13.8]} 31. Rcf2 {[%clk 0:00:15.1]} 31... e5
{[%clk 0:00:13.7]} 32. Nf5 {[%clk 0:00:14.8]} 32... Qf7 {[%clk 0:00:13.6]} 33.
Qxf7+ {[%clk 0:00:13.2]} 33... Kxf7 {[%clk 0:00:14.5]} 34. Rb2 {[%clk
0:00:09.9]} 34... Ke6 {[%clk 0:00:13.9]} 35. Ng7+ {[%clk 0:00:07.6]} 35... Kf7
{[%clk 0:00:13.7]} 36. Nf5 {[%clk 0:00:08]} 36... Ke6 {[%clk 0:00:14.3]} 37.
Ng7+ {[%clk 0:00:08]} 37... Kf7 {[%clk 0:00:14.8]} 38. Nf5 {[%clk 0:00:06.4]}
1/2-1/2

[Event "*** Titled Tuesday Blitz"]
[Site "Chess.com"]
[Date "2020.11.10"]
[Round "3"]
[White "juli2512"]
[Black "Lenyas66"]
[Result "1-0"]
[WhiteElo "2087"]
[BlackElo "2461"]
[TimeControl "180+1"]
[EndTime "10:31:40 PST"]
[Termination "juli2512 won by checkmate"]

1. e4 {[%clk 0:03:00.9]} 1... d6 {[%clk 0:00:20.9]} 2. d4 {[%clk 0:02:59.2]}
2... Nf6 {[%clk 0:00:20.6]} 3. Nc3 {[%clk 0:02:58.5]} 3... e5 {[%clk 0:00:20.8]}
4. Nge2 {[%clk 0:02:56.9]} 4... Nbd7 {[%clk 0:00:20]} 5. h3 {[%clk 0:02:56]}
5... c6 {[%clk 0:00:20.1]} 6. a4 {[%clk 0:02:54.9]} 6... Be7 {[%clk 0:00:20.3]}
7. g4 {[%clk 0:02:53.1]} 7... Qc7 {[%clk 0:00:20.6]} 8. Bg2 {[%clk 0:02:51.2]}
8... Nf8 {[%clk 0:00:20.6]} 9. O-O {[%clk 0:02:45.3]} 9... h5 {[%clk 0:00:20]}
10. g5 {[%clk 0:02:44.4]} 10... N6h7 {[%clk 0:00:20.1]} 11. f4 {[%clk
0:02:05.9]} 11... exf4 {[%clk 0:00:19.7]} 12. Bxf4 {[%clk 0:02:02.8]} 12... Nxg5
{[%clk 0:00:19.4]} 13. Qd3 {[%clk 0:01:56.5]} 13... Ng6 {[%clk 0:00:18.8]} 14.
Bh2 {[%clk 0:01:55.5]} 14... h4 {[%clk 0:00:18.3]} 15. Rae1 {[%clk 0:01:36]}
15... Ne6 {[%clk 0:00:18.2]} 16. d5 {[%clk 0:01:21.7]} 16... Nc5 {[%clk
0:00:17.5]} 17. Qf3 {[%clk 0:01:18.5]} 17... Bf6 {[%clk 0:00:16.3]} 18. Kh1
{[%clk 0:01:05.1]} 18... Ne5 {[%clk 0:00:15.9]} 19. Qf2 {[%clk 0:01:00.2]} 19...
Qe7 {[%clk 0:00:15.5]} 20. Nd4 {[%clk 0:00:48.4]} 20... Bd7 {[%clk 0:00:15.3]}
21. b4 {[%clk 0:00:43.5]} 21... Na6 {[%clk 0:00:13.8]} 22. dxc6 {[%clk
0:00:38.7]} 22... bxc6 {[%clk 0:00:13.4]} 23. b5 {[%clk 0:00:36.5]} 23... Nc5
{[%clk 0:00:08.4]} 24. bxc6 {[%clk 0:00:29]} 24... Bc8 {[%clk 0:00:08]} 25. Nd5
{[%clk 0:00:26.3]} 25... Qd8 {[%clk 0:00:08.2]} 26. c7 {[%clk 0:00:21.8]} 26...
Qd7 {[%clk 0:00:07]} 27. Nxf6+ {[%clk 0:00:20.3]} 27... gxf6 {[%clk 0:00:06.7]}
28. Qxf6 {[%clk 0:00:19.1]} 28... O-O {[%clk 0:00:05.6]} 29. Nf5 {[%clk
0:00:17.4]} 29... Ne6 {[%clk 0:00:04.2]} 30. Bxe5 {[%clk 0:00:14.4]} 30... dxe5
{[%clk 0:00:03.9]} 31. Nh6+ {[%clk 0:00:13.9]} 31... Kh7 {[%clk 0:00:03.6]} 32.
Ng4 {[%clk 0:00:13.5]} 32... Rh8 {[%clk 0:00:01.9]} 33. Qh6+ {[%clk 0:00:11.8]}
33... Kg8 {[%clk 0:00:01.3]} 34. Nf6# {[%clk 0:00:12.1]} 1-0

[Event "*** Titled Tuesday Blitz"]
[Site "Chess.com"]
[Date "2020.11.10"]
[Round "3"]
[White "ShcufNaiRolf"]
[Black "MIJuanReyesRosa"]
[Result "1-0"]
[WhiteElo "2337"]
[BlackElo "2135"]
[TimeControl "180+1"]
[EndTime "10:31:42 PST"]
[Termination "ShcufNaiRolf won on time"]

1. e4 {[%clk 0:03:00.9]} 1... c5 {[%clk 0:02:58]} 2. Nf3 {[%clk 0:03:00.6]} 2...
e6 {[%clk 0:02:56.6]} 3. g3 {[%clk 0:03:00.1]} 3... Nc6 {[%clk 0:02:51.1]} 4.
Bg2 {[%clk 0:03:00.1]} 4... d6 {[%clk 0:02:50.7]} 5. O-O {[%clk 0:02:59.7]} 5...
Nf6 {[%clk 0:02:50.6]} 6. Re1 {[%clk 0:02:59.8]} 6... Qc7 {[%clk 0:02:45.7]} 7.
c3 {[%clk 0:02:57.5]} 7... Be7 {[%clk 0:02:37.3]} 8. d4 {[%clk 0:02:57]} 8...
cxd4 {[%clk 0:02:36.2]} 9. cxd4 {[%clk 0:02:56.6]} 9... d5 {[%clk 0:02:27.5]}
10. Nc3 {[%clk 0:02:25.2]} 10... Nxe4 {[%clk 0:02:13.8]} 11. Nxe4 {[%clk
0:02:24.8]} 11... dxe4 {[%clk 0:02:13.7]} 12. Rxe4 {[%clk 0:02:25.7]} 12... O-O
{[%clk 0:02:12.1]} 13. Qc2 {[%clk 0:02:11.2]} 13... Bd7 {[%clk 0:02:01.3]} 14.
Bg5 {[%clk 0:01:49.8]} 14... Bd6 {[%clk 0:01:37.6]} 15. Rh4 {[%clk 0:01:31.3]}
15... g6 {[%clk 0:01:30]} 16. Bf6 {[%clk 0:01:12.5]} 16... Nb4 {[%clk
0:01:09.4]} 17. Qxc7 {[%clk 0:00:26.4]} 17... Bxc7 {[%clk 0:01:08.4]} 18. Be7
{[%clk 0:00:26.8]} 18... Nc2 {[%clk 0:00:47.1]} 19. Rc1 {[%clk 0:00:26.1]} 19...
Nxd4 {[%clk 0:00:13.6]} 20. Nxd4 {[%clk 0:00:20]} 20... Rfc8 {[%clk 0:00:12.7]}
21. Nb3 {[%clk 0:00:15.7]} 21... Be5 {[%clk 0:00:11]} 22. Rhc4 {[%clk
0:00:13.9]} 22... Bxb2 {[%clk 0:00:07.3]} 23. Rxc8+ {[%clk 0:00:13.1]} 23...
Rxc8 {[%clk 0:00:07.2]} 24. Rxc8+ {[%clk 0:00:11.8]} 24... Bxc8 {[%clk
0:00:07.3]} 25. Nc5 {[%clk 0:00:10.7]} 25... b6 {[%clk 0:00:06.4]} 26. Ne4
{[%clk 0:00:11.2]} 26... f5 {[%clk 0:00:04.4]} 27. Nd6 {[%clk 0:00:11.1]} 27...
Ba6 {[%clk 0:00:03.6]} 28. Bf1 {[%clk 0:00:10.7]} 28... Bxf1 {[%clk 0:00:02.4]}
29. Kxf1 {[%clk 0:00:11.6]} 29... Bd4 {[%clk 0:00:01.7]} 30. Ke2 {[%clk
0:00:11.6]} 1-0

[Event "*** Titled Tuesday Blitz"]
[Site "Chess.com"]
[Date "2020.11.10"]
[Round "3"]
[White "Zarikovs1999"]
[Black "arminmusovic"]
[Result "0-1"]
[WhiteElo "2360"]
[BlackElo "2565"]
[TimeControl "180+1"]
[EndTime "10:31:46 PST"]
[Termination "arminmusovic won by resignation"]

1. e4 {[%clk 0:02:53.6]} 1... c6 {[%clk 0:02:59.9]} 2. d4 {[%clk 0:02:53.3]}
2... d5 {[%clk 0:03:00.8]} 3. Nc3 {[%clk 0:02:54.2]} 3... dxe4 {[%clk
0:03:00.7]} 4. Nxe4 {[%clk 0:02:55.1]} 4... Nf6 {[%clk 0:03:00.4]} 5. Nxf6+
{[%clk 0:02:54.3]} 5... exf6 {[%clk 0:03:01.3]} 6. c3 {[%clk 0:02:52.4]} 6...
Bd6 {[%clk 0:03:01.5]} 7. Bd3 {[%clk 0:02:52.7]} 7... O-O {[%clk 0:03:02]} 8.
Ne2 {[%clk 0:02:53.6]} 8... Re8 {[%clk 0:03:02.9]} 9. Qc2 {[%clk 0:02:53.8]}
9... Kh8 {[%clk 0:03:03.5]} 10. Be3 {[%clk 0:02:48.5]} 10... Nd7 {[%clk
0:03:03.7]} 11. O-O-O {[%clk 0:02:47.9]} 11... Nf8 {[%clk 0:03:03.9]} 12. h4
{[%clk 0:02:40.5]} 12... Qc7 {[%clk 0:02:59]} 13. h5 {[%clk 0:02:38.3]} 13...
Bg4 {[%clk 0:02:52.1]} 14. h6 {[%clk 0:02:34.7]} 14... g6 {[%clk 0:02:51.6]} 15.
Kb1 {[%clk 0:02:33.4]} 15... c5 {[%clk 0:02:48.2]} 16. dxc5 {[%clk 0:02:28.6]}
16... Bxc5 {[%clk 0:02:48.2]} 17. Nd4 {[%clk 0:02:26.5]} 17... Bxd1 {[%clk
0:02:40.7]} 18. Rxd1 {[%clk 0:02:26.9]} 18... a6 {[%clk 0:02:18.9]} 19. g4
{[%clk 0:02:15]} 19... Rad8 {[%clk 0:01:56]} 20. g5 {[%clk 0:02:00.5]} 20...
Rxe3 {[%clk 0:01:49.9]} 21. fxe3 {[%clk 0:01:59.3]} 21... fxg5 {[%clk
0:01:49.4]} 22. Qf2 {[%clk 0:01:52.4]} 22... Qe7 {[%clk 0:01:39.3]} 23. Rf1
{[%clk 0:01:51.4]} 23... f5 {[%clk 0:01:26.4]} 24. Qg3 {[%clk 0:01:38.5]} 24...
Bd6 {[%clk 0:01:06.9]} 25. Qf3 {[%clk 0:01:22.7]} 25... Re8 {[%clk 0:01:01.8]}
26. Ka1 {[%clk 0:01:06.3]} 26... g4 {[%clk 0:00:59.4]} 27. Qd5 {[%clk
0:01:04.3]} 27... g3 {[%clk 0:00:47.3]} 28. Bxf5 {[%clk 0:00:52.3]} 28... gxf5
{[%clk 0:00:32.1]} 29. Nxf5 {[%clk 0:00:49.8]} 29... Qe5 {[%clk 0:00:27.3]} 30.
Qxd6 {[%clk 0:00:33.5]} 30... Qxd6 {[%clk 0:00:27.6]} 31. Nxd6 {[%clk
0:00:34.4]} 31... g2 {[%clk 0:00:28]} 32. Rg1 {[%clk 0:00:22.7]} 32... Rxe3
{[%clk 0:00:26]} 33. Kb1 {[%clk 0:00:19]} 33... Re2 {[%clk 0:00:17.8]} 34. Nc4
{[%clk 0:00:16.8]} 34... Ng6 {[%clk 0:00:16]} 35. Kc1 {[%clk 0:00:14.2]} 35...
Nf4 {[%clk 0:00:15.5]} 36. Kd1 {[%clk 0:00:13.7]} 36... Rf2 {[%clk 0:00:15.7]}
37. Ke1 {[%clk 0:00:12.9]} 37... Nd3+ {[%clk 0:00:15.3]} 38. Kd1 {[%clk
0:00:13]} 38... Nxb2+ {[%clk 0:00:15.5]} 39. Nxb2 {[%clk 0:00:09.7]} 39... Rxb2
{[%clk 0:00:16.4]} 40. Ke1 {[%clk 0:00:10.3]} 40... Kg8 {[%clk 0:00:15.7]} 0-1